[Event "47th GER-ch Blitz 2020"]
[Site "Magdeburg"]
[Date "2020.08.15"]
[Round "26.10"]
[White "Barzen, Pascal"]
[Black "Siebarth, Raiko"]
[Result "1-0"]
[ECO "B25"]
[WhiteElo "2321"]
[BlackElo "2333"]
[Annotator "ChessBase"]
[PlyCount "81"]
[EventDate "2020.07.28"]
[EventType "tourn"]
[EventCountry "GER"]
[SourceTitle "playchess.com"]
[Source "ChessBase"]
[SourceQuality "1"]
[TimeControl "180+2"]

1. e4 {[%emt 0:00:00]} c5 {[%emt 0:00:00]} 2. Nc3 {[%emt 0:00:00]} Nc6 {[%emt 0:00:00]} 3. g3 g6 4. Bg2 {[%emt 0:00:01]} Bg7 {[%emt 0:00:00]} 5. d3 {[%emt 0:00:00]} d6 {[%emt 0:00:01]} 6. f4 {[%emt 0:00:01]} h5 {[%emt 0:00:02]} 7. Nf3 {[%emt 0:00:01]} e6 {[%emt 0:00:02]} 8. O-O {[%emt 0:00:05]} Nge7 {[%emt 0:00:00]} 9. Be3 {[%emt 0:00:04]} Nd4 {[%emt 0:00:03]} 10. Qd2 {[%emt 0:00:04]} Nec6 {[%emt 0:00:01]} 11. Ng5 {[%emt 0:00:13]} h4 {[%emt 0:00:04]} 12. Nd1 {[%emt 0:00:05]} hxg3 {[%emt 0:00:02]} 13. hxg3 {[%emt 0:00:02]} f6 {[%emt 0:00:18]} 14. Nh3 {[%emt 0:00:01]} e5 {[%emt 0:00:00]} 15. Nhf2 {[%emt 0:00:09]} Qe7 {[%emt 0:00:16]} 16. c3 {[%emt 0:00:05]} Ne6 {[%emt 0:00:00]} 17. f5 {[%emt 0:00:25]} gxf5 {[%emt 0:00:03]} 18. exf5 {[%emt 0:00:01]} Nc7 {[%emt 0:00:05]} 19. g4 {[%emt 0:00:04]} d5 {[%emt 0:00:03]} 20. d4 {[%emt 0:00:17]} cxd4 21. cxd4 {[%emt 0:00:01]} Bd7 {[%emt 0:00:15]} 22. Nc3 {[%emt 0:00:01]} O-O-O {[%emt 0:00:14]} 23. dxe5 {[%emt 0:00:20]} Nxe5 {[%emt 0:00:02]} 24. Bxa7 {[%emt 0:00:34]} Qd6 {[%emt 0:00:07]} 25. Rfc1 {[%emt 0:00:08]} Nc4 {[%emt 0:00:04]} 26. Qd4 {[%emt 0:00:24]} Bc6 {[%emt 0:00:37]} 27. b3 {[%emt 0:00:10]} Ne5 {[%emt 0:00:24]} 28. Bc5 {[%emt 0:00:06]} Qd7 {[%emt 0:00:04]} 29. Nd3 {[%emt 0:00:10]} Rde8 {[%emt 0:00:13]} 30. b4 {[%emt 0:00:10]} Bh6 {[%emt 0:00:08]} 31. b5 {[%emt 0:00:04]} Nxd3 {[%emt 0:00:16]} 32. Qxd3 {[%emt 0:00:01]} Nxb5 {[%emt 0:00:16]} 33. Nxb5 Bxb5 {[%emt 0:00:01]} 34. Bd6+ {[%emt 0:00:08]} Bxc1 {[%emt 0:00:01]} 35. Rxc1+ Bc6 36. Qa3 {[%emt 0:00:03]} Qh7 {[%emt 0:00:07]} 37. Bxd5 {[%emt 0:00:05]} Kd7 {[%emt 0:00:13]} 38. Bxc6+ bxc6 {[%emt 0:00:00]} 39. Qa7+ {[%emt 0:00:11]} Kxd6 40. Rd1+ {[%emt 0:00:00]} Ke5 {[%emt 0:00:07]} 41. Qd4# 1-0

[Event "47th GER-ch Blitz 2020"]
[Site "Magdeburg"]
[Date "2020.08.15"]
[Round "26.11"]
[White "Wichmann, Cliff"]
[Black "Schneider, Ilja"]
[Result "0-1"]
[ECO "D15"]
[WhiteElo "2305"]
[BlackElo "2479"]
[Annotator "ChessBase"]
[PlyCount "78"]
[EventDate "2020.07.28"]
[EventType "tourn"]
[EventCountry "GER"]
[SourceTitle "playchess.com"]
[Source "ChessBase"]
[SourceQuality "1"]
[TimeControl "180+2"]

1. d4 {[%emt 0:00:00]} d5 {[%emt 0:00:00]} 2. c4 {[%emt 0:00:00]} c6 {[%emt 0:00:00]} 3. Nc3 {[%emt 0:00:00]} Nf6 {[%emt 0:00:00]} 4. Nf3 {[%emt 0:00:01]} a6 {[%emt 0:00:00]} 5. e3 {[%emt 0:00:01]} b5 {[%emt 0:00:01]} 6. b3 {[%emt 0:00:01]} Bg4 {[%emt 0:00:01]} 7. Qc2 {[%emt 0:00:01]} e6 {[%emt 0:00:02]} 8. Ne5 {[%emt 0:00:01]} Bf5 {[%emt 0:00:01]} 9. Bd3 {[%emt 0:00:02]} Bxd3 {[%emt 0:00:01]} 10. Nxd3 {[%emt 0:00:01]} Nbd7 {[%emt 0:00:02]} 11. O-O {[%emt 0:00:02]} Bd6 {[%emt 0:00:01]} 12. f4 {[%emt 0:00:06]} bxc4 {[%emt 0:00:31]} 13. bxc4 {[%emt 0:00:01]} c5 {[%emt 0:00:26]} 14. Ne5 {[%emt 0:00:23]} cxd4 {[%emt 0:00:26]} 15. exd4 {[%emt 0:00:03]} dxc4 {[%emt 0:00:02]} 16. Be3 {[%emt 0:00:49]} Nb6 {[%emt 0:00:56]} 17. Rf3 {[%emt 0:00:17]} O-O {[%emt 0:00:05]} 18. Rh3 {[%emt 0:00:03]} Nbd5 {[%emt 0:00:10]} 19. Nxd5 {[%emt 0:00:09]} exd5 {[%emt 0:00:02]} 20. f5 {[%emt 0:00:02]} Ne4 {[%emt 0:00:09]} 21. f6 {[%emt 0:00:09]} Qxf6 {[%emt 0:00:11]} 22. Nd7 {[%emt 0:00:09]} Qe6 {[%emt 0:00:02]} 23. Nxf8 {[%emt 0:00:03]} Rxf8 {[%emt 0:00:02]} 24. Rb1 {[%emt 0:00:05]} f5 {[%emt 0:00:02]} 25. Kh1 {[%emt 0:00:11]} f4 {[%emt 0:00:01]} 26. Bg1 {[%emt 0:00:01]} Qg6 {[%emt 0:00:06]} 27. Qb2 {[%emt 0:00:28]} c3 {[%emt 0:00:02]} 28. Qb6 {[%emt 0:00:03]} Ba3 {[%emt 0:00:15]} 29. Qb3 {[%emt 0:00:29]} c2 {[%emt 0:00:05]} 30. Qxd5+ {[%emt 0:00:05]} Kh8 {[%emt 0:00:02]} 31. Rf1 {[%emt 0:00:02]} c1=Q {[%emt 0:00:02]} 32. Rxc1 {[%emt 0:00:02]} Bxc1 {[%emt 0:00:01]} 33. Qe5 {[%emt 0:00:04]} Be3 {[%emt 0:00:01]} 34. d5 {[%emt 0:00:01]} Bxg1 {[%emt 0:00:02]} 35. Kxg1 {[%emt 0:00:01]} Ng5 {[%emt 0:00:02]} 36. Rb3 {[%emt 0:00:04]} f3 {[%emt 0:00:03]} 37. h4 {[%emt 0:00:05]} f2+ {[%emt 0:00:01]} 38. Kf1 {[%emt 0:00:00]} Ne4 {[%emt 0:00:03]} 39. Rf3 {[%emt 0:00:05]} Nd2+ {[%emt 0:00:03]} 0-1

[Event "47th GER-ch Blitz 2020"]
[Site "Magdeburg"]
[Date "2020.08.15"]
[Round "26.12"]
[White "Zelbel, Patrick"]
[Black "Svane, Frederik"]
[Result "1-0"]
[ECO "B22"]
[WhiteElo "2448"]
[BlackElo "2421"]
[Annotator "ChessBase"]
[PlyCount "83"]
[EventDate "2020.07.28"]
[EventType "tourn"]
[EventCountry "GER"]
[SourceTitle "playchess.com"]
[Source "ChessBase"]
[SourceQuality "1"]
[TimeControl "180+2"]

1. e4 {[%emt 0:00:00]} c5 {[%emt 0:00:00]} 2. c3 {[%emt 0:00:00]} d5 3. exd5 Qxd5 {[%emt 0:00:01]} 4. Nf3 {[%emt 0:00:00]} g6 {[%emt 0:00:01]} 5. Na3 {[%emt 0:00:01]} Bg7 {[%emt 0:00:04]} 6. Bc4 {[%emt 0:00:01]} Qe4+ {[%emt 0:00:03]} 7. Be2 {[%emt 0:00:01]} Nf6 {[%emt 0:00:04]} 8. O-O {[%emt 0:00:05]} O-O {[%emt 0:00:02]} 9. d4 {[%emt 0:00:02]} cxd4 {[%emt 0:00:02]} 10. Nxd4 {[%emt 0:00:02]} Qe5 {[%emt 0:00:28]} 11. Re1 {[%emt 0:00:16]} Qa5 {[%emt 0:00:38]} 12. Bf3 {[%emt 0:00:10]} e5 {[%emt 0:00:15]} 13. Nc4 {[%emt 0:00:07]} Qc7 {[%emt 0:00:03]} 14. Nxe5 {[%emt 0:00:03]} Nbd7 {[%emt 0:00:06]} 15. Bf4 {[%emt 0:00:31]} Nxe5 {[%emt 0:00:01]} 16. Bxe5 Qb6 17. Qb3 {[%emt 0:00:06]} Nd7 {[%emt 0:00:22]} 18. Bxg7 {[%emt 0:00:10]} Kxg7 {[%emt 0:00:01]} 19. Re7 {[%emt 0:00:04]} Kf6 {[%emt 0:00:36]} 20. Rae1 {[%emt 0:00:11]} Qxb3 {[%emt 0:00:10]} 21. axb3 {[%emt 0:00:09]} Nc5 {[%emt 0:00:05]} 22. Rc7 {[%emt 0:00:22]} Ne6 {[%emt 0:00:10]} 23. Nxe6 {[%emt 0:00:06]} Bxe6 {[%emt 0:00:02]} 24. Rxb7 {[%emt 0:00:03]} Rab8 {[%emt 0:00:00]} 25. Rxb8 {[%emt 0:00:07]} Rxb8 {[%emt 0:00:02]} 26. b4 {[%emt 0:00:01]} a5 {[%emt 0:00:04]} 27. bxa5 {[%emt 0:00:07]} Rxb2 {[%emt 0:00:01]} 28. Ra1 {[%emt 0:00:03]} Bc4 {[%emt 0:00:01]} 29. h4 {[%emt 0:00:15]} Ba6 {[%emt 0:00:00]} 30. Ra4 {[%emt 0:00:05]} Rc2 {[%emt 0:00:15]} 31. Rb4 {[%emt 0:00:04]} Kg7 {[%emt 0:00:20]} 32. Rb6 {[%emt 0:00:09]} Bc4 {[%emt 0:00:02]} 33. a6 {[%emt 0:00:14]} Ra2 {[%emt 0:00:02]} 34. Bb7 {[%emt 0:00:05]} Kf8 {[%emt 0:00:00]} 35. Rc6 {[%emt 0:00:04]} Bb5 {[%emt 0:00:04]} 36. Rb6 {[%emt 0:00:08]} Bc4 {[%emt 0:00:02]} 37. Kh2 {[%emt 0:00:02]} Ke7 {[%emt 0:00:02]} 38. Rc6 {[%emt 0:00:04]} Bb5 {[%emt 0:00:02]} 39. Rc7+ {[%emt 0:00:06]} Ke6 {[%emt 0:00:02]} 40. c4 {[%emt 0:00:02]} Bd7 {[%emt 0:00:04]} 41. a7 {[%emt 0:00:08]} Kd6 {[%emt 0:00:01]} 42. Rxd7+ {[%emt 0:00:02]} 1-0

[Event "47th GER-ch Blitz 2020"]
[Site "Magdeburg"]
[Date "2020.08.15"]
[Round "26.13"]
[White "Dobrikov, Marco"]
[Black "Reichmann, Hendrik"]
[Result "1-0"]
[ECO "B06"]
[WhiteElo "2290"]
[BlackElo "2348"]
[Annotator "ChessBase"]
[PlyCount "68"]
[EventDate "2020.07.28"]
[EventType "tourn"]
[EventCountry "GER"]
[SourceTitle "playchess.com"]
[Source "ChessBase"]
[SourceQuality "1"]
[TimeControl "180+2"]

1. e4 {[%emt 0:00:00]} g6 {[%emt 0:00:00]} 2. d4 {[%emt 0:00:00]} Bg7 {[%emt 0:00:00]} 3. Nc3 {[%emt 0:00:01]} d6 {[%emt 0:00:01]} 4. Be3 {[%emt 0:00:02]} a6 {[%emt 0:00:01]} 5. Qd2 {[%emt 0:00:02]} b5 {[%emt 0:00:01]} 6. O-O-O {[%emt 0:00:09]} Nd7 {[%emt 0:00:02]} 7. h4 {[%emt 0:00:04]} h6 {[%emt 0:00:01]} 8. g4 {[%emt 0:00:05]} Bb7 {[%emt 0:00:03]} 9. f3 {[%emt 0:00:03]} Rc8 {[%emt 0:00:02]} 10. Kb1 {[%emt 0:00:04]} c5 {[%emt 0:00:01]} 11. dxc5 {[%emt 0:00:11]} Nxc5 {[%emt 0:00:03]} 12. Bd4 {[%emt 0:00:10]} Nf6 {[%emt 0:00:14]} 13. Nh3 {[%emt 0:00:12]} b4 {[%emt 0:00:06]} 14. Ne2 {[%emt 0:00:07]} Qa5 {[%emt 0:00:37]} 15. g5 {[%emt 0:00:12]} Nfxe4 {[%emt 0:00:17]} 16. fxe4 {[%emt 0:00:07]} Nxe4 {[%emt 0:00:01]} 17. Qe3 {[%emt 0:00:06]} Bxd4 {[%emt 0:00:08]} 18. Nxd4 {[%emt 0:00:13]} Nc3+ {[%emt 0:01:10]} 19. bxc3 {[%emt 0:00:01]} Bxh1 {[%emt 0:00:04]} 20. Nb3 {[%emt 0:00:33]} Qf5 {[%emt 0:00:08]} 21. Bd3 {[%emt 0:00:05]} Qf3 {[%emt 0:00:03]} 22. Qxf3 {[%emt 0:00:38]} Bxf3 {[%emt 0:00:02]} 23. Re1 {[%emt 0:00:03]} Rxc3 {[%emt 0:00:09]} 24. Nf4 {[%emt 0:00:09]} hxg5 25. hxg5 {[%emt 0:00:01]} Rh1 {[%emt 0:00:09]} 26. Rxh1 {[%emt 0:00:03]} Bxh1 {[%emt 0:00:01]} 27. Kb2 {[%emt 0:00:09]} Bb7 {[%emt 0:00:07]} 28. a3 {[%emt 0:00:04]} Rc7 {[%emt 0:00:15]} 29. axb4 {[%emt 0:00:01]} e5 {[%emt 0:00:02]} 30. Ne2 {[%emt 0:00:03]} e4 {[%emt 0:00:02]} 31. Nf4 {[%emt 0:00:11]} exd3 {[%emt 0:00:01]} 32. cxd3 {[%emt 0:00:01]} Bc6 {[%emt 0:00:02]} 33. Kc3 {[%emt 0:00:04]} Bd5+ {[%emt 0:00:02]} 34. Kb2 {[%emt 0:00:01]} Bxb3 {[%emt 0:00:00]} 1-0

[Event "47th GER-ch Blitz 2020"]
[Site "Magdeburg"]
[Date "2020.08.15"]
[Round "27.3"]
[White "Reichmann, Hendrik"]
[Black "Frischmann, Rick"]
[Result "1/2-1/2"]
[ECO "D00"]
[WhiteElo "2348"]
[BlackElo "2347"]
[Annotator "ChessBase"]
[PlyCount "48"]
[EventDate "2020.07.28"]
[EventType "tourn"]
[EventCountry "GER"]
[SourceTitle "playchess.com"]
[Source "ChessBase"]
[SourceQuality "1"]
[TimeControl "180+2"]

1. d4 {[%emt 0:00:00]} d5 {[%emt 0:00:00]} 2. Bf4 {[%emt 0:00:01]} Nc6 {[%emt 0:00:00]} 3. e3 {[%emt 0:00:02]} Nf6 {[%emt 0:00:00]} 4. c4 {[%emt 0:00:02]} Bg4 {[%emt 0:00:02]} 5. Qb3 {[%emt 0:00:12]} Na5 {[%emt 0:00:01]} 6. Qa4+ {[%emt 0:00:08]} c6 {[%emt 0:00:01]} 7. c5 {[%emt 0:00:50]} b5 {[%emt 0:00:01]} 8. Qc2 {[%emt 0:00:02]} Nd7 {[%emt 0:00:29]} 9. Bd3 {[%emt 0:00:25]} e5 {[%emt 0:00:19]} 10. Bg3 {[%emt 0:00:06]} exd4 {[%emt 0:00:12]} 11. exd4 {[%emt 0:00:02]} Qf6 {[%emt 0:00:04]} 12. f3 {[%emt 0:00:19]} Bh5 {[%emt 0:00:07]} 13. Ne2 {[%emt 0:00:04]} Bg6 {[%emt 0:00:07]} 14. b3 {[%emt 0:00:09]} Be7 {[%emt 0:00:02]} 15. Nbc3 {[%emt 0:00:01]} O-O {[%emt 0:00:04]} 16. Rd1 {[%emt 0:00:08]} Rfe8 {[%emt 0:00:03]} 17. O-O {[%emt 0:00:04]} Bxd3 {[%emt 0:00:12]} 18. Qxd3 {[%emt 0:00:01]} h5 {[%emt 0:00:01]} 19. Bc7 {[%emt 0:00:14]} Nb7 {[%emt 0:00:02]} 20. a4 {[%emt 0:00:09]} a6 {[%emt 0:00:08]} 21. axb5 {[%emt 0:00:02]} axb5 {[%emt 0:00:01]} 22. Nxb5 {[%emt 0:00:13]} cxb5 {[%emt 0:00:07]} 23. Qxb5 {[%emt 0:00:01]} Qa6 {[%emt 0:00:47]} 24. Qxd7 {[%emt 0:00:16]} Qxe2 1/2-1/2

[Event "47th GER-ch Blitz 2020"]
[Site "Magdeburg"]
[Date "2020.08.15"]
[Round "27.4"]
[White "Svane, Frederik"]
[Black "Dobrikov, Marco"]
[Result "1-0"]
[ECO "B51"]
[WhiteElo "2421"]
[BlackElo "2290"]
[Annotator "ChessBase"]
[PlyCount "63"]
[EventDate "2020.07.28"]
[EventType "tourn"]
[EventCountry "GER"]
[SourceTitle "playchess.com"]
[Source "ChessBase"]
[SourceQuality "1"]
[TimeControl "180+2"]

1. e4 {[%emt 0:00:00]} c5 {[%emt 0:00:00]} 2. Nf3 d6 3. Bb5+ {[%emt 0:00:02]} Nd7 {[%emt 0:00:00]} 4. d4 {[%emt 0:00:02]} cxd4 {[%emt 0:00:01]} 5. Qxd4 {[%emt 0:00:01]} a6 {[%emt 0:00:01]} 6. Bxd7+ {[%emt 0:00:02]} Bxd7 {[%emt 0:00:01]} 7. Nc3 {[%emt 0:00:01]} e5 {[%emt 0:00:16]} 8. Qd3 {[%emt 0:00:01]} Bc6 {[%emt 0:00:09]} 9. O-O {[%emt 0:00:17]} Be7 {[%emt 0:00:02]} 10. Rd1 {[%emt 0:00:02]} Nf6 {[%emt 0:00:04]} 11. Bg5 {[%emt 0:00:01]} O-O {[%emt 0:00:17]} 12. Nd2 {[%emt 0:00:02]} b5 {[%emt 0:00:14]} 13. Nf1 {[%emt 0:00:06]} Ne8 {[%emt 0:00:11]} 14. Bxe7 {[%emt 0:00:04]} Qxe7 {[%emt 0:00:01]} 15. Ne3 {[%emt 0:00:01]} Rd8 {[%emt 0:00:02]} 16. Ncd5 {[%emt 0:00:22]} Bxd5 {[%emt 0:00:03]} 17. Nxd5 {[%emt 0:00:02]} Qe6 {[%emt 0:00:04]} 18. a4 {[%emt 0:00:05]} Rb8 {[%emt 0:00:15]} 19. axb5 {[%emt 0:00:04]} axb5 {[%emt 0:00:01]} 20. Ra7 b4 {[%emt 0:00:21]} 21. h3 {[%emt 0:00:30]} Kh8 {[%emt 0:00:11]} 22. b3 {[%emt 0:00:35]} Qg6 {[%emt 0:00:04]} 23. Ne7 {[%emt 0:00:05]} Qe6 {[%emt 0:00:06]} 24. Nf5 {[%emt 0:00:06]} Rc8 {[%emt 0:00:12]} 25. Rb7 {[%emt 0:00:07]} g6 {[%emt 0:00:06]} 26. Ne3 {[%emt 0:00:04]} Rc3 {[%emt 0:00:08]} 27. Qd2 {[%emt 0:00:14]} Nf6 {[%emt 0:00:06]} 28. Rxb4 {[%emt 0:00:04]} Rc6 {[%emt 0:00:01]} 29. Qd3 {[%emt 0:00:14]} Kg7 {[%emt 0:00:06]} 30. Rb7 {[%emt 0:00:08]} Nd7 {[%emt 0:00:10]} 31. Qd5 {[%emt 0:00:06]} Qxd5 {[%emt 0:00:25]} 32. exd5 {[%emt 0:00:01]} 1-0

[Event "47th GER-ch Blitz 2020"]
[Site "Magdeburg"]
[Date "2020.08.15"]
[Round "27.5"]
[White "Schneider, Ilja"]
[Black "Zelbel, Patrick"]
[Result "0-1"]
[ECO "B01"]
[WhiteElo "2479"]
[BlackElo "2448"]
[Annotator "ChessBase"]
[PlyCount "48"]
[EventDate "2020.07.28"]
[EventType "tourn"]
[EventCountry "GER"]
[SourceTitle "playchess.com"]
[Source "ChessBase"]
[SourceQuality "1"]
[TimeControl "180+2"]

1. e4 {[%emt 0:00:00]} d5 {[%emt 0:00:00]} 2. exd5 {[%emt 0:00:01]} Qxd5 {[%emt 0:00:00]} 3. Nf3 {[%emt 0:00:01]} Bg4 {[%emt 0:00:00]} 4. Be2 {[%emt 0:00:01]} Nc6 {[%emt 0:00:01]} 5. d4 {[%emt 0:00:10]} O-O-O {[%emt 0:00:03]} 6. c4 {[%emt 0:00:01]} Qf5 {[%emt 0:00:02]} 7. Be3 {[%emt 0:00:01]} Bxf3 {[%emt 0:00:02]} 8. Bxf3 {[%emt 0:00:01]} Nxd4 {[%emt 0:00:02]} 9. Bg4 {[%emt 0:00:09]} Nc2+ {[%emt 0:00:02]} 10. Qxc2 {[%emt 0:00:01]} Qxg4 {[%emt 0:00:02]} 11. O-O {[%emt 0:00:02]} e6 {[%emt 0:00:32]} 12. h3 {[%emt 0:00:24]} Qf5 {[%emt 0:00:18]} 13. Qa4 {[%emt 0:00:04]} Bc5 {[%emt 0:00:07]} 14. Nc3 {[%emt 0:00:09]} Nf6 {[%emt 0:00:12]} 15. b4 {[%emt 0:01:13]} Bxe3 {[%emt 0:00:06]} 16. fxe3 {[%emt 0:00:01]} Qe5 {[%emt 0:00:32]} 17. Qxa7 {[%emt 0:00:24]} Qxc3 {[%emt 0:00:03]} 18. Rad1 {[%emt 0:00:15]} Nd7 {[%emt 0:00:33]} 19. Rxf7 {[%emt 0:00:02]} Nb8 {[%emt 0:00:04]} 20. Rdf1 {[%emt 0:00:16]} Qxc4 {[%emt 0:00:07]} 21. Rxg7 {[%emt 0:00:03]} Rhf8 {[%emt 0:00:06]} 22. Rxf8 {[%emt 0:00:07]} Rxf8 {[%emt 0:00:02]} 23. Rxh7 {[%emt 0:00:01]} Qxb4 {[%emt 0:00:15]} 24. a3 {[%emt 0:00:10]} Qb1+ {[%emt 0:00:02]} 0-1

[Event "47th GER-ch Blitz 2020"]
[Site "Magdeburg"]
[Date "2020.08.15"]
[Round "27.6"]
[White "Siebarth, Raiko"]
[Black "Wichmann, Cliff"]
[Result "1-0"]
[ECO "D35"]
[WhiteElo "2333"]
[BlackElo "2305"]
[Annotator "ChessBase"]
[PlyCount "51"]
[EventDate "2020.07.28"]
[EventType "tourn"]
[EventCountry "GER"]
[SourceTitle "playchess.com"]
[Source "ChessBase"]
[SourceQuality "1"]
[TimeControl "180+2"]

1. c4 {[%emt 0:00:00]} e6 {[%emt 0:00:00]} 2. Nc3 {[%emt 0:00:01]} d5 3. d4 Nf6 {[%emt 0:00:01]} 4. Bf4 {[%emt 0:00:02]} dxc4 {[%emt 0:00:02]} 5. e3 {[%emt 0:00:02]} Bb4 {[%emt 0:00:07]} 6. Bxc4 {[%emt 0:00:02]} Nd5 {[%emt 0:00:02]} 7. Nge2 {[%emt 0:00:03]} Nxf4 {[%emt 0:00:07]} 8. Nxf4 {[%emt 0:00:01]} c5 {[%emt 0:00:05]} 9. d5 {[%emt 0:00:10]} Bxc3+ {[%emt 0:00:05]} 10. bxc3 {[%emt 0:00:01]} exd5 {[%emt 0:00:03]} 11. Bxd5 {[%emt 0:00:06]} O-O {[%emt 0:00:06]} 12. O-O {[%emt 0:00:06]} Qf6 {[%emt 0:00:01]} 13. Rb1 {[%emt 0:00:26]} Nc6 {[%emt 0:00:02]} 14. Qf3 {[%emt 0:00:02]} Bd7 {[%emt 0:00:23]} 15. Rxb7 {[%emt 0:00:06]} Rad8 {[%emt 0:00:08]} 16. Rd1 {[%emt 0:00:39]} Ne5 {[%emt 0:00:19]} 17. Qe2 {[%emt 0:00:04]} g5 {[%emt 0:00:22]} 18. Nh5 {[%emt 0:00:11]} Qg6 {[%emt 0:00:00]} 19. Ng3 {[%emt 0:00:03]} a6 {[%emt 0:00:14]} 20. Be4 {[%emt 0:00:09]} f5 {[%emt 0:00:28]} 21. Bd5+ {[%emt 0:00:10]} Kh8 {[%emt 0:00:02]} 22. h3 {[%emt 0:00:01]} Bb5 {[%emt 0:00:05]} 23. c4 {[%emt 0:00:05]} Nxc4 {[%emt 0:00:09]} 24. Bxc4 {[%emt 0:00:20]} Rxd1+ {[%emt 0:00:05]} 25. Qxd1 {[%emt 0:00:01]} Bxc4 {[%emt 0:00:01]} 26. Nh5 {[%emt 0:00:01]} 1-0

[Event "47th GER-ch Blitz 2020"]
[Site "Magdeburg"]
[Date "2020.08.15"]
[Round "27.7"]
[White "Hess, Max"]
[Black "Barzen, Pascal"]
[Result "1-0"]
[ECO "B11"]
[WhiteElo "2378"]
[BlackElo "2321"]
[Annotator "ChessBase"]
[PlyCount "81"]
[EventDate "2020.07.28"]
[EventType "tourn"]
[EventCountry "GER"]
[SourceTitle "playchess.com"]
[Source "ChessBase"]
[SourceQuality "1"]
[TimeControl "180+2"]

1. e4 {[%emt 0:00:00]} c6 {[%emt 0:00:00]} 2. Nc3 {[%emt 0:00:04]} d5 {[%emt 0:00:00]} 3. Nf3 {[%emt 0:00:01]} Bg4 {[%emt 0:00:00]} 4. h3 {[%emt 0:00:02]} Bxf3 {[%emt 0:00:02]} 5. Qxf3 {[%emt 0:00:01]} e6 {[%emt 0:00:01]} 6. g4 {[%emt 0:00:04]} Nf6 {[%emt 0:00:02]} 7. Bg2 {[%emt 0:00:05]} Be7 {[%emt 0:00:10]} 8. O-O {[%emt 0:00:14]} O-O {[%emt 0:00:02]} 9. d3 {[%emt 0:00:01]} Nbd7 {[%emt 0:00:03]} 10. Qg3 {[%emt 0:00:19]} Ne8 {[%emt 0:00:14]} 11. f4 {[%emt 0:00:05]} b5 {[%emt 0:00:07]} 12. g5 {[%emt 0:00:10]} b4 {[%emt 0:00:05]} 13. Ne2 {[%emt 0:00:01]} Nd6 {[%emt 0:00:09]} 14. h4 {[%emt 0:00:06]} Kh8 {[%emt 0:00:10]} 15. h5 {[%emt 0:00:05]} f5 {[%emt 0:00:02]} 16. e5 {[%emt 0:00:10]} Nb5 {[%emt 0:00:04]} 17. d4 {[%emt 0:00:17]} c5 {[%emt 0:00:01]} 18. Be3 {[%emt 0:00:04]} Rc8 {[%emt 0:00:07]} 19. c3 {[%emt 0:00:07]} bxc3 {[%emt 0:00:10]} 20. bxc3 {[%emt 0:00:04]} cxd4 {[%emt 0:00:00]} 21. cxd4 {[%emt 0:00:02]} Rc2 {[%emt 0:00:03]} 22. Qe1 {[%emt 0:00:13]} Nb6 {[%emt 0:00:05]} 23. Qd1 {[%emt 0:00:09]} Qc7 {[%emt 0:00:19]} 24. Rc1 {[%emt 0:00:04]} Rc8 {[%emt 0:00:00]} 25. Rxc2 {[%emt 0:00:09]} Qxc2 {[%emt 0:00:01]} 26. Qxc2 {[%emt 0:00:06]} Rxc2 {[%emt 0:00:01]} 27. Bf3 {[%emt 0:00:00]} Nc4 {[%emt 0:00:09]} 28. Rb1 {[%emt 0:00:14]} a6 {[%emt 0:00:20]} 29. a4 {[%emt 0:00:09]} Nxe3 {[%emt 0:00:41]} 30. axb5 {[%emt 0:00:01]} axb5 {[%emt 0:00:02]} 31. Rxb5 {[%emt 0:00:02]} Kg8 {[%emt 0:00:20]} 32. g6 {[%emt 0:00:08]} hxg6 {[%emt 0:00:02]} 33. hxg6 {[%emt 0:00:01]} Rc8 {[%emt 0:00:17]} 34. Rb6 {[%emt 0:00:00]} Bd8 {[%emt 0:00:07]} 35. Rxe6 Ba5 36. Kf2 {[%emt 0:00:05]} Nc2 {[%emt 0:00:01]} 37. Bxd5 {[%emt 0:00:03]} Kf8 {[%emt 0:00:01]} 38. Ra6 {[%emt 0:00:03]} Bb4 {[%emt 0:00:07]} 39. Ra7 Rd8 40. Rf7+ {[%emt 0:00:17]} Ke8 {[%emt 0:00:02]} 41. Bc6+ 1-0

[Event "47th GER-ch Blitz 2020"]
[Site "Magdeburg"]
[Date "2020.08.15"]
[Round "27.8"]
[White "Kopylov, Michael"]
[Black "Baskin, Robert"]
[Result "1/2-1/2"]
[ECO "E01"]
[WhiteElo "2407"]
[BlackElo "2390"]
[Annotator "ChessBase"]
[PlyCount "29"]
[EventDate "2020.07.28"]
[EventType "tourn"]
[EventCountry "GER"]
[SourceTitle "playchess.com"]
[Source "ChessBase"]
[SourceQuality "1"]
[TimeControl "180+2"]

1. d4 {[%emt 0:00:00]} Nf6 {[%emt 0:00:00]} 2. c4 {[%emt 0:00:00]} e6 {[%emt 0:00:00]} 3. g3 {[%emt 0:00:01]} d5 {[%emt 0:00:00]} 4. Bg2 {[%emt 0:00:01]} Bb4+ {[%emt 0:00:01]} 5. Nd2 {[%emt 0:00:03]} O-O {[%emt 0:00:02]} 6. Ngf3 {[%emt 0:00:01]} b6 {[%emt 0:00:01]} 7. O-O {[%emt 0:00:10]} Bb7 {[%emt 0:00:01]} 8. cxd5 {[%emt 0:00:01]} Bxd5 {[%emt 0:00:03]} 9. Qc2 {[%emt 0:00:04]} Bxd2 {[%emt 0:00:15]} 10. Bxd2 {[%emt 0:00:04]} Nbd7 {[%emt 0:00:02]} 11. Rac1 {[%emt 0:00:10]} c5 {[%emt 0:00:03]} 12. dxc5 {[%emt 0:00:17]} Nxc5 {[%emt 0:00:01]} 13. Bb4 {[%emt 0:00:08]} Rc8 {[%emt 0:00:03]} 14. Rfd1 {[%emt 0:00:17]} Qc7 {[%emt 0:00:11]} 15. b3 {[%emt 0:00:26]} 1/2-1/2

[Event "47th GER-ch Blitz 2020"]
[Site "Magdeburg"]
[Date "2020.08.15"]
[Round "27.9"]
[White "Berger, Steve"]
[Black "Ehmann, Thilo"]
[Result "0-1"]
[ECO "B23"]
[WhiteElo "2408"]
[BlackElo "2329"]
[Annotator "ChessBase"]
[PlyCount "62"]
[EventDate "2020.07.28"]
[EventType "tourn"]
[EventCountry "GER"]
[SourceTitle "playchess.com"]
[Source "ChessBase"]
[SourceQuality "1"]
[TimeControl "180+2"]

1. e4 {[%emt 0:00:00]} c5 {[%emt 0:00:00]} 2. Nc3 {[%emt 0:00:00]} g6 {[%emt 0:00:00]} 3. d4 {[%emt 0:00:01]} cxd4 {[%emt 0:00:05]} 4. Qxd4 {[%emt 0:00:01]} Nf6 {[%emt 0:00:01]} 5. Nf3 {[%emt 0:00:01]} Nc6 {[%emt 0:00:02]} 6. Qa4 {[%emt 0:00:01]} d5 {[%emt 0:00:32]} 7. Bb5 {[%emt 0:00:19]} Bg7 {[%emt 0:00:23]} 8. Bg5 {[%emt 0:00:23]} O-O {[%emt 0:00:27]} 9. O-O-O {[%emt 0:00:07]} a6 {[%emt 0:00:23]} 10. e5 {[%emt 0:00:18]} axb5 {[%emt 0:00:15]} 11. Qxa8 d4 {[%emt 0:00:06]} 12. exf6 {[%emt 0:00:10]} exf6 {[%emt 0:00:00]} 13. Bf4 {[%emt 0:00:08]} Qb6 {[%emt 0:00:06]} 14. Ne2 {[%emt 0:00:40]} f5 {[%emt 0:00:17]} 15. Qa3 {[%emt 0:00:17]} Be6 {[%emt 0:00:11]} 16. Rhe1 {[%emt 0:00:03]} Bc4 {[%emt 0:00:16]} 17. Qd6 {[%emt 0:00:23]} d3 {[%emt 0:00:06]} 18. cxd3 Bxa2 {[%emt 0:00:00]} 19. Nc3 {[%emt 0:00:20]} Bb3 {[%emt 0:00:03]} 20. Rd2 {[%emt 0:00:06]} b4 {[%emt 0:00:05]} 21. Nd5 {[%emt 0:00:01]} Qa6 {[%emt 0:00:04]} 22. Ne7+ {[%emt 0:00:14]} Nxe7 {[%emt 0:00:03]} 23. Qxa6 {[%emt 0:00:01]} bxa6 {[%emt 0:00:06]} 24. Rxe7 {[%emt 0:00:01]} Ba2 25. Rc7 {[%emt 0:00:03]} Re8 {[%emt 0:00:07]} 26. d4 {[%emt 0:00:04]} f6 {[%emt 0:00:09]} 27. d5 {[%emt 0:00:01]} g5 {[%emt 0:00:02]} 28. Be3 {[%emt 0:00:00]} f4 {[%emt 0:00:00]} 29. Bb6 {[%emt 0:00:03]} g4 {[%emt 0:00:03]} 30. Nh4 {[%emt 0:00:10]} f3 {[%emt 0:00:04]} 31. d6 fxg2 0-1